fUSD/lending_fUSD_20260213
["ID","MTS","AMOUNT","RATE_DAILY","PERIOD"]
[405325210,1770999047252,-175.0,0.0003,14]
[405325211,1770999047262,-152.64,0.0003,2]
[405325212,1770999047273,-152.64,0.0003,2]
[405325213,1770999047282,-152.64,0.0003,2]
[405325214,1770999047291,-152.64,0.0003,2]
[405325215,1770999047300,-152.64,0.0003,2]
[405325216,1770999047310,-152.64,0.0003,2]
[405325217,1770999047319,-152.64,0.0003,2]
[405325218,1770999047329,-152.64,0.0003,2]
[405325219,1770999047338,-152.64,0.0003,2]
[405325220,1770999047348,-152.64,0.0003,2]
[405325221,1770999047357,-152.64,0.0003,2]
[405325222,1770999047368,-152.64,0.0003,2]
[405325223,1770999047378,-152.64,0.0003,2]
[405325224,1770999047387,-152.64,0.0003,2]
[405325225,1770999047396,-152.64,0.0003,2]
[405325226,1770999047407,-152.0,0.00030027,3]
[405325227,1770999047416,-200.0,0.00030093,2]
[405325228,1770999047425,-200.0,0.00030093,2]
[405325229,1770999047434,-200.0,0.00030093,2]
[405325230,1770999047443,-662.51665377,0.0003013,2]
[405325231,1770999047453,-500.0,0.00030137,120]
[405325232,1770999047462,-350.0,0.00030146,4]
[405325233,1770999047472,-350.0,0.0003019,2]
[405325234,1770999047481,-160.12,0.000302,30]
[405325235,1770999047491,-1000.0,0.0003025,7]
[405325237,1770999047500,-151.0,0.00030297,7]
[405325238,1770999047509,-200.0,0.00030394,2]
[405325239,1770999047519,-200.0,0.00030394,2]
[405325240,1770999047528,-155.01,0.00030411,120]
[405325241,1770999047538,-350.0,0.00030415,3]
[405325242,1770999047547,-350.0,0.00030452,2]
[405325243,1770999047556,-150.2,0.000305,3]
[405325244,1770999047565,-1000.0,0.00030524,7]
[405325245,1770999047574,-152.0,0.00030605,4]
[405325246,1770999047583,-3354.50490408,0.00030634,2]
[405325247,1770999047592,-200.0,0.00030698,2]
[405325248,1770999047602,-200.0,0.00030698,2]
[405325249,1770999047612,-400.0,0.00030708,30]
[405325250,1770999047624,-400.0,0.00030708,30]
[405325252,1770999047633,-400.0,0.00030708,30]
[405325253,1770999047643,-400.0,0.00030708,30]
[405325254,1770999047652,-400.0,0.00030708,30]
[405325255,1770999047662,-400.0,0.00030708,30]
[405325256,1770999047670,-226.02669443,0.00030708,30]
[405325257,1770999047679,-500.0,0.00030712,2]
[405325258,1770999047688,-1337.0,0.00030773,2]
[405325259,1770999047698,-617.0,0.00030773,2]
[405325260,1770999047707,-1274.0,0.00030773,2]
[405325261,1770999047716,-1999.0,0.00030798,7]
[405325262,1770999047725,-300.131845,0.00030938,49]
[405325263,1770999047734,-350.0,0.0003097,2]
[405325264,1770999047744,-9787.97513504,0.00031,15]
[405325265,1770999047753,-157.0,0.00031,34]
[405325266,1770999047762,-259.0,0.00031,2]
[405325267,1770999047771,-160.0,0.00031,30]
[405325268,1770999047781,-160.0,0.00031,30]
[405325269,1770999047791,-160.0,0.00031,120]
[405325270,1770999047800,-650.0,0.00031,2]
[405325271,1770999047809,-1961.51,0.0003105,30]
[405325272,1770999047818,-1003.41,0.00031075,2]
[405325273,1770999047827,-350.0,0.00031172,3]
[405325274,1770999047837,-152.0,0.00031183,5]
[405325275,1770999047846,-3398.733,0.000312,30]
[405325276,1770999047857,-3398.733,0.000312,30]
[405325277,1770999047867,-3398.73,0.000312,30]
[405325278,1770999047877,-350.0,0.00031239,2]
[405325279,1770999047886,-400.0,0.000314,120]
[405325280,1770999047896,-150.0,0.0003147,2]
[405325281,1770999047905,-350.0,0.00031529,5]
[405325282,1770999047915,-156653.75,0.000316,2]
[405325283,1770999047924,-175.0,0.00031644,14]
[405325284,1770999047934,-350.0,0.00031681,3]
[405325285,1770999047943,-152.0,0.00031761,6]
[405325286,1770999048117,-1000.0,0.00032,120]
[405325287,1770999048127,-1000.0,0.00032,120]
[405325288,1770999048137,-160.0,0.00032,120]
[405325289,1770999048147,-152.0,0.0003234,7]
[405325290,1770999048157,-8678.5257731,0.00032393,2]
[405325291,1770999048166,-145725.4325181,0.00032393,2]
[405325292,1770999048175,-151.0,0.00032393,7]
[405325293,1770999048185,-1593.77,0.000324,7]
[405325294,1770999048195,-918.0,0.00032444,2]
[405325295,1770999048204,-1208.0,0.00032444,2]
[405325296,1770999048213,-3560.576,0.000325,20]
[405325297,1770999048223,-3560.576,0.000325,20]
[405325298,1770999048233,-3560.57,0.000325,20]
[405325299,1770999048243,-2450.0,0.0003257,2]
[405325300,1770999048252,-516.95013076,0.00032876,30]
[405325301,1770999048261,-500.0,0.00032877,120]
[405325302,1770999048270,-345.43,0.00032877,2]
[405325303,1770999048280,-300.0,0.00032877,5]
[405325304,1770999048290,-500.0,0.00032877,2]
[405325305,1770999048299,-500.0,0.00032877,2]
[405325306,1770999048308,-500.0,0.00032877,2]
[405325307,1770999048318,-500.0,0.00032877,2]
[405325308,1770999048327,-500.0,0.00032877,2]
[405325309,1770999048336,-365.85048482,0.00032877,2]
[405325310,1770999048346,-1348.34,0.000329,2]
[405325311,1770999048355,-2688.33,0.000329,14]
[405325312,1770999048365,-1084.23,0.000329,14]
[405325313,1770999048374,-156653.75,0.000329,14]
[405325314,1770999048384,-152.0,0.00032918,8]
[405325315,1770999048393,-537.20222059,0.00033,120]
[405325316,1770999048403,-300.0,0.00033,120]
[405325317,1770999048412,-1000.0,0.00033,20]
[405325318,1770999048422,-3000.0,0.00033,20]
[405325319,1770999048432,-542.595972,0.00033,8]
[405325320,1770999048442,-700.0,0.00033,2]
[405325321,1770999048452,-195.0,0.00033,2]
[405325322,1770999048462,-150.0,0.00033043,2]
[405325323,1770999048471,-912.5,0.00033104,30]
[405325324,1770999048481,-657.0,0.00033104,30]
[405325325,1770999048490,-38121.66895208,0.00033182,2]
[405325326,1770999048500,-156653.75,0.000332,2]
[405325327,1770999048509,-156653.75,0.000332,14]
[405325328,1770999048519,-1936.4408456,0.00033207,2]
[405325329,1770999048528,-32515.7390954,0.00033207,2]
[405325330,1770999048549,-179.0,0.00033226,30]
[405325331,1770999048560,-152.0,0.00033496,9]
[405325332,1770999048570,-1084.23,0.000336,14]
[405325333,1770999048580,-156653.75,0.000336,14]
[405325334,1770999048591,-12701.29,0.00033699,2]
[405325335,1770999048601,-601.10661111,0.00033699,5]
[405325336,1770999048611,-1337.0,0.00033773,2]
[405325337,1770999048623,-617.0,0.00033773,2]
[405325338,1770999048633,-1274.0,0.00033773,2]
[405325339,1770999048644,-3884.266,0.000338,20]
[405325340,1770999048654,-3884.266,0.000338,20]
[405325341,1770999048665,-3884.26,0.000338,20]
[405325342,1770999048675,-1348.34,0.000338,2]
[405325343,1770999048685,-1593.77,0.000338,14]
[405325344,1770999048695,-1771.32142509,0.00034,120]
[405325345,1770999048704,-1000.0,0.00034,120]
[405325346,1770999048714,-2688.33,0.00034,14]
[405325347,1770999048724,-3000.0,0.00034,30]
[405325348,1770999048734,-152.0,0.00034074,10]
[405325349,1770999048745,-456.20686437,0.00034098,7]
[405325350,1770999048755,-151.0,0.000341,31]
[405325351,1770999048764,-1000.0,0.00034181,2]
[405325352,1770999048774,-1014.07294417,0.00034181,2]
[405325353,1770999048784,-1000.0,0.00034181,2]
[405325354,1770999048794,-1985.92705583,0.00034181,2]
[405325355,1770999048804,-1003.41,0.00034284,2]
[405325356,1770999048813,-1084.23,0.000343,14]
[405325357,1770999048823,-253.57674732,0.000345,120]
[405325358,1770999048833,-152.0,0.00034652,11]
[405325359,1770999048842,-150.0,0.00034696,2]
[405325360,1770999048852,-1348.34,0.000347,2]
[405325361,1770999048862,-1593.77,0.000347,14]
[405325362,1770999048873,-1961.51,0.00034703,30]
[405325363,1770999048883,-1500.0,0.00034795,2]
[405325364,1770999048893,-200.0,0.000348,120]
[405325365,1770999048903,-754.90580345,0.0003488,120]
[405325366,1770999048912,-2688.33,0.000349,14]
[405325367,1770999048922,-151.0,0.000349,31]
[405325368,1770999048932,-151.0,0.000349,31]
[405325369,1770999048942,-151.0,0.000349,31]
[405325370,1770999048952,-151.0,0.00034997,14]
[405325371,1770999048962,-624.42112934,0.00035,90]
[405325372,1770999048971,-1000.0,0.00035,120]
[405325373,1770999048981,-1000.0,0.00035,120]
[405325374,1770999048990,-12138.33,0.00035,120]
[405325375,1770999049000,-250.0,0.00035,7]
[405325376,1770999049010,-240.45,0.00035,2]
[405325377,1770999049019,-3000.0,0.00035,30]
[405325378,1770999049029,-1524.0,0.00035,30]
[405325379,1770999049039,-1593.77,0.00035,14]
[405325380,1770999049049,-1084.23,0.00035,14]
[405325381,1770999049059,-158.627137,0.00035,31]
[405325382,1770999049069,-750.0,0.00035,2]
[405325383,1770999049079,-509.14650785,0.00035,5]
[405325384,1770999049089,-585.0,0.00035,2]
[405325385,1770999049099,-156653.75,0.00035,14]
[405325386,1770999049110,-687.60412038,0.00035,120]
[405325387,1770999049121,-152.0,0.00035231,12]
[405325388,1770999049131,-918.0,0.00035444,2]
[405325389,1770999049141,-1208.0,0.00035444,2]
[405325390,1770999049152,-2450.0,0.0003557,2]
[405325391,1770999049162,-409.4229661,0.00035589,120]
[405325392,1770999049172,-179.04905926,0.00035589,120]
[405325393,1770999049182,-1626.19259747,0.000356,120]
[405325394,1770999049194,-153.096268,0.000356,31]
[405325395,1770999049204,-151.680019,0.000356,31]
[405325396,1770999049214,-2430.25653445,0.0003561,120]
[405325397,1770999049224,-500.0,0.00035616,120]
[405325398,1770999049234,-3209.0,0.00035616,120]
[405325399,1770999049243,-3209.0,0.00035616,120]
[405325400,1770999049253,-2478.0,0.00035616,120]
[405325401,1770999049262,-1348.34,0.000357,2]
[405325402,1770999049272,-152.0,0.00035809,13]
[405325403,1770999049282,-1013.13774,0.00035888,30]
[405325404,1770999049292,-2000.0,0.000359,2]
[405325405,1770999049302,-514.47,0.00036,30]
[405325406,1770999049311,-1000.0,0.00036,120]
[405325407,1770999049321,-1000.0,0.00036,120]
[405325408,1770999049331,-3154.0,0.00036,30]
[405325409,1770999049340,-1013.13774,0.00036088,30]
[405325410,1770999049351,-2688.33,0.000361,14]
[405325411,1770999049361,-1013.13774,0.00036288,30]
[405325412,1770999049371,-13109.4,0.000363,30]
[405325413,1770999049381,-152.0,0.00036387,14]
[405325414,1770999049391,-150.0,0.0003643,2]
[405325415,1770999049401,-1013.13774,0.00036488,30]
[405325416,1770999049411,-416.878403,0.00036541,31]
[405325417,1770999049421,-416.878403,0.00036541,31]
[405325418,1770999049431,-416.878403,0.00036541,31]
[405325419,1770999049440,-416.878403,0.00036541,31]
[405325420,1770999049450,-490.90547,0.00036541,31]
[405325421,1770999049460,-490.90547,0.00036541,31]
[405325422,1770999049470,-490.90547,0.00036541,31]
[405325423,1770999049479,-490.90547,0.00036541,31]
[405325424,1770999049488,-151.0,0.00036541,31]
[405325425,1770999049497,-38121.66895208,0.00036541,2]
[405325426,1770999049507,-175.0,0.00036549,30]
[405325427,1770999049516,-1013.13774,0.00036688,30]
[405325428,1770999049526,-514.47,0.0003672,30]
[405325429,1770999049535,-1337.0,0.00036773,2]
[405325430,1770999049545,-617.0,0.00036773,2]
[405325431,1770999049555,-1274.0,0.00036773,2]
[405325432,1770999049564,-1013.13774,0.00036888,30]
[405325433,1770999049574,-3377.1258,0.00036888,7]
[405325434,1770999049583,-500.0,0.000369,13]
[405325435,1770999049592,-150.76,0.00036949,10]
[405325436,1770999049602,-152.0,0.00036965,15]
[405325437,1770999049611,-95261.5483379,0.00036986,25]
[405325438,1770999049622,-151.0,0.00036986,31]
[405325439,1770999049631,-160.099519,0.00036986,31]
[405325440,1770999049641,-161.615697,0.00036986,31]
[405325441,1770999049650,-158.441673,0.00036986,31]
[405325442,1770999049660,-158.441673,0.00036986,31]
[405325443,1770999049669,-158.441673,0.00036986,31]
[405325444,1770999049679,-158.441673,0.00036986,31]
[405325445,1770999049689,-151.0,0.00036986,31]
[405325446,1770999049699,-158.698908,0.00036986,31]
[405325447,1770999049708,-274.24725,0.00036986,31]
[405325448,1770999049718,-151.0,0.00036986,31]
[405325449,1770999049727,-155.649527,0.00036986,31]
[405325450,1770999049736,-151.0,0.00036986,31]
[405325451,1770999049745,-151.0,0.00036986,31]
[405325452,1770999049756,-197.731711,0.00036986,31]
[405325453,1770999049765,-151.0,0.00036986,31]
[405325454,1770999049774,-156.345647,0.00036986,31]
[405325455,1770999049783,-151.0,0.00036986,31]
[405325456,1770999049793,-151.0,0.00036986,31]
[405325457,1770999049802,-151.0,0.00036986,31]
[405325458,1770999049812,-249.574016,0.00036986,31]
[405325459,1770999049822,-151.0,0.00036986,31]
[405325460,1770999049831,-151.0,0.00036986,31]
[405325461,1770999049841,-220.485858,0.00036986,31]
[405325462,1770999049850,-153.729865,0.00036986,31]
[405325463,1770999049859,-185.974701,0.00036986,31]
[405325464,1770999049870,-161.725556,0.00036986,31]
[405325465,1770999049880,-151.0,0.00036986,31]
[405325466,1770999049891,-157.176105,0.00036986,31]
[405325467,1770999049900,-157.176105,0.00036986,31]
[405325468,1770999049910,-157.176105,0.00036986,31]
[405325469,1770999049919,-157.176105,0.00036986,31]
[405325470,1770999049928,-165.23144,0.00036986,31]
[405325471,1770999049938,-155.740293,0.00036986,31]
[405325472,1770999049947,-151.0,0.00036986,31]
[405325473,1770999049957,-151.0,0.00036986,31]
[405325474,1770999049966,-151.0,0.00036986,31]
[405325475,1770999049975,-165.924621,0.00036986,31]
[405325476,1770999049985,-151.0,0.00036986,31]
[405325477,1770999049994,-151.0,0.00036986,31]
[405325478,1770999050003,-161.612271,0.00036986,31]
[405325479,1770999050014,-180.494328,0.00036986,31]
[405325480,1770999050023,-151.0,0.00036986,31]
[405325481,1770999050032,-161.874922,0.00036986,31]
[405325482,1770999050042,-170.116335,0.00036986,31]
[405325483,1770999050051,-166.959997,0.00036986,31]
[405325484,1770999050061,-151.0,0.00036986,31]
[405325485,1770999050070,-151.0,0.00036986,31]
[405325486,1770999050080,-165.536013,0.00036986,31]
[405325487,1770999050089,-151.0,0.00036986,31]
[405325488,1770999050099,-265.603504,0.00036986,31]
[405325489,1770999050112,-265.603504,0.00036986,31]
[405325490,1770999050123,-265.603504,0.00036986,31]
[405325491,1770999050132,-265.603504,0.00036986,31]
[405325492,1770999050143,-151.890921,0.00036986,31]
[405325493,1770999050153,-151.890921,0.00036986,31]
[405325494,1770999050162,-151.890921,0.00036986,31]
[405325495,1770999050172,-151.890921,0.00036986,31]
[405325496,1770999050182,-229.673984,0.00036986,31]
[405325497,1770999050191,-191.212227,0.00036986,31]
[405325498,1770999050200,-151.0,0.00036986,31]
[405325499,1770999050210,-151.000018,0.00036986,31]
[405325500,1770999050219,-151.0,0.00036986,31]
[405325501,1770999050228,-151.0,0.00036986,31]
[405325502,1770999050238,-151.0,0.00036986,31]
[405325503,1770999050247,-151.0,0.00036986,31]
[405325504,1770999050257,-151.0,0.00036986,31]
[405325505,1770999050267,-151.0,0.00036986,31]
[405325506,1770999050276,-151.0,0.00036986,31]
[405325507,1770999050286,-151.0,0.00036986,31]
[405325508,1770999050295,-151.0,0.00036986,31]
[405325509,1770999050305,-151.0,0.00036986,31]
[405325510,1770999050314,-151.0,0.00036986,31]
[405325511,1770999050323,-163.263235,0.00036986,31]
[405325512,1770999050332,-151.0,0.00036986,31]
[405325513,1770999050342,-151.0,0.00036986,31]
[405325514,1770999050351,-151.0,0.00036986,31]
[405325515,1770999050361,-151.0,0.00036986,31]
[405325516,1770999050372,-151.0,0.00036986,31]
[405325517,1770999050381,-151.0,0.00036986,31]
[405325518,1770999050391,-151.0,0.00036986,31]
[405325519,1770999050400,-165.519734,0.00036986,31]
[405325520,1770999050410,-151.0,0.00036986,31]
[405325521,1770999050419,-151.0,0.00036986,31]
[405325522,1770999050428,-151.0,0.00036986,31]
[405325523,1770999050438,-242.406119,0.00036986,31]
[405325524,1770999050448,-242.406119,0.00036986,31]
[405325525,1770999050457,-242.406119,0.00036986,31]
[405325526,1770999050467,-242.406119,0.00036986,31]
[405325527,1770999050476,-242.406119,0.00036986,31]
[405325528,1770999050486,-242.406119,0.00036986,31]
[405325529,1770999050495,-162.873119,0.00036986,31]
[405325530,1770999050503,-151.0,0.00036986,31]
[405325531,1770999050512,-242.406119,0.00036986,31]
[405325532,1770999050522,-151.0,0.00036986,31]
[405325533,1770999050531,-242.406119,0.00036986,31]
[405325534,1770999050540,-151.0,0.00036986,31]
[405325535,1770999050549,-238.561771,0.00036986,31]
[405325536,1770999050559,-151.0,0.00036986,31]
[405325537,1770999050568,-151.0,0.00036986,31]
[405325538,1770999050577,-151.0,0.00036986,31]
[405325539,1770999050587,-151.0,0.00036986,31]
[405325540,1770999050596,-151.0,0.00036986,31]
[405325541,1770999050605,-151.0,0.00036986,31]
[405325542,1770999050614,-151.0,0.00036986,31]
[405325543,1770999050625,-151.0,0.00036986,31]
[405325544,1770999050634,-151.0,0.00036986,31]
[405325545,1770999050644,-151.0,0.00036986,31]
[405325546,1770999050653,-151.0,0.00036986,31]
[405325547,1770999050663,-166.421285,0.00036986,31]
[405325548,1770999050672,-151.0,0.00036986,31]
[405325549,1770999050682,-151.0,0.00036986,31]
[405325550,1770999050691,-151.0,0.00036986,31]
[405325551,1770999050700,-151.0,0.00036986,31]
[405325552,1770999050710,-151.0,0.00036986,31]
[405325553,1770999050719,-1536.992956,0.00036986,31]
[405325554,1770999050728,-1536.992956,0.00036986,31]
[405325555,1770999050737,-1536.992956,0.00036986,31]
[405325556,1770999050746,-219.056588,0.00036986,31]
[405325557,1770999050755,-1536.992956,0.00036986,31]
[405325558,1770999050765,-1536.992956,0.00036986,31]
[405325559,1770999050775,-1536.992956,0.00036986,31]
[405325560,1770999050784,-1536.992956,0.00036986,31]
[405325561,1770999050793,-1536.992956,0.00036986,31]
[405325562,1770999050802,-1536.992956,0.00036986,31]
[405325563,1770999050811,-1536.992956,0.00036986,31]
[405325564,1770999050820,-1536.992956,0.00036986,31]
[405325565,1770999050830,-1536.992956,0.00036986,31]
[405325566,1770999050839,-1871.025907,0.00036986,31]
[405325567,1770999050848,-1871.025907,0.00036986,31]
[405325568,1770999050858,-1871.025907,0.00036986,31]
[405325569,1770999050867,-1871.025907,0.00036986,31]
[405325570,1770999050877,-1871.025907,0.00036986,31]
[405325571,1770999050886,-1871.025907,0.00036986,31]
[405325572,1770999050896,-1871.025907,0.00036986,31]
[405325573,1770999050905,-1871.025907,0.00036986,31]
[405325574,1770999050914,-1871.025907,0.00036986,31]
[405325575,1770999050923,-1871.025907,0.00036986,31]
[405325576,1770999050933,-1871.025907,0.00036986,31]
[405325577,1770999050942,-1871.025907,0.00036986,31]
[405325578,1770999050951,-173.973553,0.00036986,31]
[405325579,1770999050960,-1064.550733,0.00036986,31]
[405325580,1770999050969,-1064.550733,0.00036986,31]
[405325581,1770999050979,-1064.550733,0.00036986,31]
[405325582,1770999050987,-1064.550733,0.00036986,31]
[405325583,1770999050997,-1064.550733,0.00036986,31]
[405325584,1770999051006,-1064.550733,0.00036986,31]
[405325585,1770999051015,-1064.550733,0.00036986,31]
[405325586,1770999051024,-1064.550733,0.00036986,31]
[405325587,1770999051034,-1064.550733,0.00036986,31]
[405325588,1770999051043,-1064.550733,0.00036986,31]
[405325589,1770999051052,-1064.550733,0.00036986,31]
[405325590,1770999051062,-1064.550733,0.00036986,31]
[405325591,1770999051071,-155.360449,0.00036986,31]
[405325592,1770999051081,-151.0,0.00036986,31]
[405325593,1770999051090,-151.0,0.00036986,31]
[405325594,1770999051099,-151.0,0.00036986,31]
[405325595,1770999051113,-162.758638,0.00036986,31]
[405325596,1770999051124,-151.0,0.00036986,31]
[405325597,1770999051134,-151.0,0.00036986,31]
[405325598,1770999051144,-151.0,0.00036986,31]
[405325599,1770999051155,-151.0,0.00036986,31]
[405325600,1770999051164,-151.0,0.00036986,31]
[405325601,1770999051174,-210.968183,0.00036986,31]
[405325602,1770999051184,-151.0,0.00036986,31]
[405325603,1770999051194,-151.0,0.00036986,31]
[405325604,1770999051203,-1043.762613,0.00036986,31]
[405325605,1770999051213,-151.0,0.00036986,31]
[405325606,1770999051222,-215.43284,0.00036986,31]
[405325607,1770999051231,-1043.762613,0.00036986,31]
[405325608,1770999051241,-1043.762613,0.00036986,31]
[405325609,1770999051251,-151.0,0.00036986,31]
[405325610,1770999051260,-1043.762613,0.00036986,31]
[405325611,1770999051270,-158.822012,0.00036986,31]
[405325612,1770999051279,-1043.762613,0.00036986,31]
[405325613,1770999051288,-1043.762613,0.00036986,31]
[405325614,1770999051298,-1043.762613,0.00036986,31]
[405325615,1770999051307,-1043.762613,0.00036986,31]
[405325616,1770999051316,-151.0,0.00036986,31]
[405325617,1770999051325,-1043.762613,0.00036986,31]
[405325618,1770999051335,-151.0,0.00036986,31]
[405325619,1770999051344,-157.558412,0.00036986,31]
[405325620,1770999051520,-1043.762613,0.00036986,31]
[405325621,1770999051530,-398.838341,0.00036986,7]
[405325622,1770999051539,-1043.762613,0.00036986,31]
[405325623,1770999051549,-398.838341,0.00036986,7]
[405325624,1770999051559,-1043.762613,0.00036986,31]
[405325625,1770999051568,-398.838341,0.00036986,7]
[405325626,1770999051578,-151.0,0.00036986,31]
[405325627,1770999051588,-398.838341,0.00036986,7]
[405325628,1770999051597,-151.0,0.00036986,31]
[405325629,1770999051606,-398.838341,0.00036986,7]
[405325630,1770999051615,-398.838341,0.00036986,7]
[405325631,1770999051626,-168.108186,0.00036986,31]
[405325632,1770999051635,-398.838341,0.00036986,7]
[405325633,1770999051644,-398.838341,0.00036986,7]
[405325634,1770999051653,-398.838341,0.00036986,7]
[405325635,1770999051662,-151.0,0.00036986,31]
[405325636,1770999051671,-154.058843,0.00036986,31]
[405325637,1770999051680,-398.838341,0.00036986,7]
[405325638,1770999051689,-398.838341,0.00036986,7]
[405325639,1770999051698,-151.0,0.00036986,31]
[405325640,1770999051707,-398.838341,0.00036986,7]
[405325641,1770999051716,-151.0,0.00036986,31]
[405325642,1770999051726,-151.0,0.00036986,31]
[405325643,1770999051735,-151.0,0.00036986,31]
[405325644,1770999051744,-151.0,0.00036986,31]
[405325645,1770999051753,-151.0,0.00036986,31]
[405325646,1770999051762,-151.0,0.00036986,31]
[405325647,1770999051772,-151.0,0.00036986,31]
[405325648,1770999051781,-151.0,0.00036986,31]
[405325649,1770999051790,-151.0,0.00036986,31]
[405325650,1770999051799,-151.0,0.00036986,31]
[405325651,1770999051808,-151.0,0.00036986,31]
[405325652,1770999051817,-151.0,0.00036986,31]
[405325653,1770999051826,-151.0,0.00036986,31]
[405325654,1770999051835,-151.0,0.00036986,31]
[405325655,1770999051845,-151.0,0.00036986,31]
[405325656,1770999051854,-201.089528,0.00036986,31]
[405325657,1770999051864,-151.0,0.00036986,31]
[405325658,1770999051874,-287.518977,0.00036986,31]
[405325659,1770999051883,-287.518977,0.00036986,31]
[405325660,1770999051892,-287.518977,0.00036986,31]
[405325661,1770999051901,-151.0,0.00036986,31]
[405325662,1770999051910,-287.518977,0.00036986,31]
[405325663,1770999051919,-151.0,0.00036986,31]
[405325664,1770999051928,-287.518977,0.00036986,31]
[405325665,1770999051938,-287.518977,0.00036986,31]
[405325666,1770999051948,-287.518977,0.00036986,31]
[405325667,1770999051957,-287.518977,0.00036986,31]
[405325668,1770999051967,-287.518977,0.00036986,31]
[405325669,1770999051976,-287.518977,0.00036986,31]
[405325670,1770999051986,-151.0,0.00036986,31]
[405325671,1770999051995,-151.0,0.00036986,31]
[405325672,1770999052004,-287.518977,0.00036986,31]
[405325673,1770999052013,-151.0,0.00036986,31]
[405325674,1770999052022,-287.518977,0.00036986,31]
[405325675,1770999052031,-151.0,0.00036986,31]
[405325676,1770999052040,-151.0,0.00036986,31]
[405325677,1770999052050,-295.841741,0.00036986,31]
[405325678,1770999052060,-151.0,0.00036986,31]
[405325679,1770999052070,-270.734552,0.00036986,31]
[405325680,1770999052080,-168.321907,0.00036986,31]
[405325681,1770999052089,-168.321907,0.00036986,31]
[405325682,1770999052099,-168.321907,0.00036986,31]
[405325683,1770999052112,-168.321907,0.00036986,31]
[405325684,1770999052122,-168.321907,0.00036986,31]
[405325685,1770999052132,-168.321907,0.00036986,31]
[405325686,1770999052142,-168.321907,0.00036986,31]
[405325687,1770999052151,-168.321907,0.00036986,31]
[405325688,1770999052160,-168.321907,0.00036986,31]
[405325689,1770999052170,-168.321907,0.00036986,31]
[405325690,1770999052180,-168.321907,0.00036986,31]
[405325691,1770999052189,-151.0,0.00036986,31]
[405325692,1770999052199,-168.321907,0.00036986,31]
[405325693,1770999052210,-151.0,0.00036986,31]
[405325694,1770999052220,-158.384846,0.00036986,31]
[405325695,1770999052228,-197.772119,0.00036986,31]
[405325696,1770999052237,-197.772119,0.00036986,31]
[405325697,1770999052247,-197.772119,0.00036986,31]
[405325698,1770999052256,-197.772119,0.00036986,31]
[405325699,1770999052265,-168.874312,0.00036986,31]
[405325700,1770999052275,-197.772119,0.00036986,31]
[405325701,1770999052284,-168.874312,0.00036986,31]
[405325702,1770999052294,-197.772119,0.00036986,31]
[405325703,1770999052303,-168.874312,0.00036986,31]
[405325704,1770999052312,-197.772119,0.00036986,31]
[405325705,1770999052322,-168.874312,0.00036986,31]
[405325706,1770999052331,-714.400562,0.00036986,31]
[405325707,1770999052341,-714.400562,0.00036986,31]
[405325708,1770999052350,-197.772119,0.00036986,31]
[405325709,1770999052359,-168.874312,0.00036986,31]
[405325710,1770999052369,-205.01211,0.00036986,31]
[405325711,1770999052379,-714.400562,0.00036986,31]